bitfinex/quotes_ETHUSD_20260114
["timestamp","ask_amount","ask_price","bid_price","bid_amount"]
[1768415432753,0.91214609,3348.9,3346.8,0.96256029]
[1768415432959,0.91214609,3348.9,3347.2,0.96156029]
[1768415433851,0.91214609,3348.9,3346.8,0.001]
[1768415434053,0.402,3349.0,3346.8,0.001]
[1768415434054,0.91214609,3348.7,3346.8,0.001]
[1768415434588,0.91214609,3348.5,3346.8,0.001]
[1768415435180,1.31414609,3348.4,3346.8,0.001]
[1768415435364,0.91214609,3348.3,3346.8,0.001]
[1768415435993,0.91214609,3348.1,3345.9,2.98870698]
[1768415436209,0.91214609,3347.9,3346.2,3.9500213]
[1768415436580,0.91214609,3347.9,3346.0,0.73351638]
[1768415436786,0.91214609,3347.9,3346.1,3.01841784]
[1768415436984,0.91214609,3347.9,3346.2,2.98841996]
[1768415437181,0.91214609,3347.9,3346.1,0.02988553]
[1768415437379,0.91214609,3347.7,3346.1,0.02988553]
[1768415437579,0.91214609,3347.7,3346.5,0.001]
[1768415438000,0.91214609,3347.5,3346.5,0.001]
[1768415438184,0.91214609,3347.5,3345.7,3.38489841]
[1768415438185,0.91214609,3347.3,3345.6,2.98898945]
[1768415438492,0.91214609,3347.3,3345.7,0.02988911]
[1768415439112,0.91214609,3347.3,3345.5,0.96156029]
[1768415439292,0.91214609,3347.3,3345.4,3.38516912]
[1768415439293,0.91214609,3347.3,3345.4,0.396]
[1768415439782,0.91214609,3347.3,3344.7,0.96156029]
[1768415439984,0.91214609,3347.0,3344.8,0.96156029]
[1768415440178,0.91214609,3346.8,3344.8,0.96156029]
[1768415440412,0.402,3346.7,3344.9,0.96156029]
[1768415440980,1.31414609,3346.7,3345.0,0.96156029]
[1768415441179,1.31414609,3346.7,3345.1,0.6940991]
[1768415441708,5.97621466,3346.6,3345.1,3.68352976]
[1768415441887,0.402,3346.5,3345.2,0.96156029]
[1768415444110,2.98828591,3346.4,3345.2,3.95087907]
[1768415444482,2.98828591,3346.4,3345.2,6.94023695]
[1768415444682,3.71734113,3346.4,3345.2,4.3020771]
[1768415445415,6.70562704,3346.4,3345.2,4.3020771]
[1768415445723,3.71734113,3346.4,3345.2,4.3020771]
[1768415445922,6.70562704,3346.4,3345.2,4.3020771]
[1768415446132,6.70562704,3346.4,3345.2,1.31275832]
[1768415446287,0.91214609,3346.3,3345.0,2.9895252]
[1768415446486,0.94223228,3346.3,3345.0,2.9895252]
[1768415446915,0.91214609,3346.3,3345.1,2.9893881]
[1768415447119,0.91214609,3346.3,3344.9,4.34717145]
[1768415447120,0.8320635,3346.2,3345.0,2.98950439]
[1768415447457,0.8320635,3346.2,3344.9,0.96156029]
[1768415447626,0.8320635,3346.2,3344.9,1.35856029]
[1768415447823,0.8320635,3346.2,3344.9,4.34817076]
[1768415448588,2.98855383,3346.1,3345.0,2.98952876]
[1768415448795,0.76912104,3346.0,3345.0,2.98952876]
[1768415449115,0.76912104,3346.0,3345.2,0.001]
[1768415449818,0.76912104,3346.0,3345.2,0.96256029]
[1768415450018,0.402,3346.5,3345.3,0.99145297]
[1768415450523,3.39032611,3346.4,3345.4,2.98917917]
[1768415450818,3.39032611,3346.4,3345.5,0.02989089]
[1768415451219,2.98832611,3346.4,3345.5,0.02989089]
[1768415452822,2.98832611,3346.4,3345.5,3.68616119]
[1768415453030,2.98832611,3346.4,3345.5,0.69710258]
[1768415453529,0.402,3346.7,3345.6,0.95536104]
[1768415453696,0.93320905,3346.6,3345.3,3.94457804]
[1768415454193,0.93320905,3346.6,3345.2,0.001]
[1768415454596,0.93320905,3346.6,3344.6,0.95536104]
[1768415454824,0.90312286,3346.4,3344.5,2.98990618]
[1768415455429,0.90312286,3346.4,3344.6,2.98986444]
[1768415455620,0.90312286,3346.2,3344.6,2.98986444]
[1768415455927,11.95278648,3346.5,3344.6,3.62755593]
[1768415455928,0.90312286,3346.0,3344.6,3.62755593]
[1768415456397,0.90312286,3346.0,3344.5,0.95536104]
[1768415456597,0.90312286,3346.0,3344.5,3.94528938]
[1768415456826,5.97746494,3345.9,3344.6,2.98984536]
[1768415458631,9.86932027,3345.9,3344.5,3.94533133]
[1768415458937,0.90312286,3345.6,3344.1,0.001]
[1768415459146,0.90312286,3345.4,3344.1,0.001]
[1768415459318,0.90312286,3345.4,3344.1,0.95636104]
[1768415459640,0.90312286,3345.4,3344.2,0.95536104]
[1768415460300,0.90312286,3345.4,3344.1,0.001]
[1768415460503,0.93320905,3345.3,3344.1,0.001]
[1768415460705,0.90312286,3345.1,3344.1,0.001]
[1768415460900,5.97925198,3344.9,3344.1,0.001]
[1768415461404,2.98962599,3344.9,3344.1,0.001]
[1768415461752,0.90312286,3344.8,3342.1,0.73878386]
[1768415461907,0.90312286,3344.6,3342.9,0.95536104]
[1768415462112,0.90312286,3344.4,3342.9,0.95536104]
[1768415462307,0.90312286,3344.4,3342.6,0.397]
[1768415462308,1.73794145,3344.7,3343.3,0.95536104]
[1768415462611,0.06131872,3345.8,3343.7,0.95536104]
[1768415462612,0.90312286,3345.3,3343.7,0.95536104]
[1768415462816,0.03008619,3345.2,3343.7,0.95536104]
[1768415463014,0.402,3345.4,3344.8,0.001]
[1768415463745,0.402,3345.4,3344.2,0.397]
[1768415463746,0.03008619,3345.3,3344.2,0.397]
[1768415463955,0.402,3345.4,3344.3,0.95536104]
[1768415464260,0.06131872,3345.8,3344.3,0.95536104]
[1768415464261,3.4521437,3345.8,3344.3,0.95536104]
[1768415464540,7.68950591,3345.8,3344.3,1.35236104]
[1768415464761,0.93320905,3345.7,3344.3,1.35236104]
[1768415465054,5.97800094,3345.6,3344.3,1.35236104]
[1768415465221,0.93320905,3345.5,3344.0,0.95536104]
[1768415465552,0.90312286,3345.1,3343.6,0.95536104]
[1768415465845,0.90312286,3344.9,3343.3,0.95536104]
[1768415466013,0.90312286,3344.9,3343.0,0.95736104]
[1768415466014,0.93320905,3344.9,3343.0,0.95736104]
[1768415466209,0.90312286,3344.7,3343.0,0.95736104]
[1768415466641,0.402,3344.6,3343.1,0.95536104]
[1768415466810,0.402,3344.6,3343.1,3.94654233]
[1768415467139,8.97021885,3344.4,3343.1,0.95536104]
[1768415467306,5.9801459,3344.4,3343.1,0.95536104]
[1768415467511,0.93720831,3344.3,3343.1,0.95536104]
[1768415467916,0.402,3344.2,3343.1,0.95536104]
[1768415468539,0.93720831,3344.3,3343.1,0.95536104]
[1768415468715,0.402,3344.2,3343.1,0.95536104]
[1768415468916,0.402,3344.2,3343.1,3.94655932]
[1768415469144,2.99043062,3344.0,3343.1,0.95536104]
[1768415469444,0.73193542,3344.1,3343.1,0.95536104]
[1768415469445,3.72230557,3344.1,3343.1,0.95536104]
[1768415469739,6.71267572,3344.1,3343.1,0.95536104]
[1768415470260,3.72230557,3344.1,3343.1,0.95536104]
[1768415470419,2.99037015,3344.1,3343.1,0.95536104]
[1768415470745,2.99037015,3344.1,3343.1,3.94653371]
[1768415470941,2.99037015,3344.1,3343.1,0.95536104]
[1768415470942,5.9807403,3344.1,3343.1,0.95536104]
[1768415471516,6.01082649,3344.1,3343.0,0.002]
[1768415471713,6.91394935,3344.1,3343.0,0.002]
[1768415471916,0.90312286,3343.9,3343.0,0.002]
[1768415472454,0.93320905,3343.9,3343.0,0.002]
[1768415472655,0.90312286,3343.9,3342.4,0.95536104]
[1768415473122,0.93320905,3343.9,3342.4,0.95536104]
[1768415473327,0.90312286,3343.9,3342.4,0.95536104]
[1768415473541,5.98139784,3343.7,3342.5,2.99171923]
[1768415473772,0.402,3343.6,3342.4,0.95536104]
[1768415474572,0.402,3343.6,3342.4,3.94719463]
[1768415474777,0.402,3343.6,3342.5,0.95536104]
[1768415475145,0.402,3343.6,3342.7,0.002]
[1768415475346,0.41591162,3343.5,3342.7,0.002]
[1768415475546,2.99096727,3343.4,3342.7,0.002]
[1768415475890,5.98193454,3343.4,3342.7,0.002]
[1768415476191,2.99096727,3343.4,3342.7,0.002]
[1768415476549,3.40679714,3343.5,3342.7,0.002]
[1768415476749,1.03062406,3344.0,3342.7,0.002]
[1768415476750,0.90412286,3344.4,3342.7,0.95736104]
[1768415477066,3.39216236,3344.3,3342.9,0.95536104]
[1768415477378,3.39216236,3344.3,3342.7,0.002]
[1768415477379,3.39216236,3344.3,3343.1,0.95536104]
[1768415477561,6.38234393,3344.3,3343.1,0.95536104]
[1768415477948,6.38234393,3344.3,3343.1,3.94659379]
[1768415478271,7.31967151,3344.3,3343.2,0.69379938]
[1768415478783,7.31967151,3344.3,3343.2,1.64916042]
[1768415479680,7.31967151,3344.3,3343.2,0.95536104]
[1768415479853,7.31967151,3344.3,3342.9,2.99134417]
[1768415479854,7.31967151,3344.3,3342.9,0.95536104]
[1768415480049,0.93320905,3344.2,3342.7,0.002]
[1768415480256,0.90312286,3344.1,3342.7,0.002]
[1768415480450,0.92273683,3343.9,3342.7,0.002]
[1768415480645,0.403,3343.8,3342.7,0.002]
[1768415481067,0.403,3343.7,3343.0,0.99792842]
[1768415481253,6.91767151,3344.3,3343.0,0.99792842]
[1768415481573,5.98068238,3344.1,3343.2,0.99792842]
[1768415481879,2.99034119,3344.1,3343.2,0.99792842]
[1768415482087,2.99113423,3344.4,3343.3,0.99792842]
[1768415482382,0.403,3344.3,3343.3,0.99792842]
[1768415482568,0.403,3344.3,3343.5,0.99792842]
[1768415483588,0.001,3344.4,3343.6,0.99792842]
[1768415485594,0.001,3344.4,3343.6,3.98867848]
[1768415485917,0.001,3344.4,3343.6,3.98871003]
[1768415486093,0.001,3344.4,3343.6,0.99792842]
[1768415486291,0.001,3344.4,3343.6,0.34728097]
[1768415486616,0.001,3344.4,3343.2,3.98907344]
[1768415486617,0.001,3344.4,3343.2,3.98906071]
[1768415486908,0.001,3344.4,3343.5,2.99087496]
[1768415487208,0.001,3344.4,3343.1,1.39492842]
[1768415487409,0.402,3344.3,3343.1,0.99792842]
[1768415487582,0.92601771,3344.1,3342.7,0.99992842]
[1768415487777,0.402,3344.3,3342.7,0.99992842]
[1768415487778,0.73085213,3344.0,3342.9,0.99792842]
[1768415487980,0.92701771,3344.4,3342.7,0.002]
[1768415487981,0.001,3344.4,3343.2,0.99792842]
[1768415488287,0.403,3344.4,3343.2,0.99792842]
[1768415488900,3.39308475,3344.4,3343.2,0.99792842]
[1768415489416,6.3831695,3344.4,3343.2,0.99792842]
[1768415489791,0.001,3344.1,3343.3,0.99792842]
[1768415490127,0.001,3344.1,3343.5,0.99792842]
[1768415491724,0.001,3344.1,3343.5,3.98876411]
[1768415492026,0.001,3344.1,3343.4,0.69802123]
[1768415492230,0.001,3344.1,3343.3,0.99792842]
[1768415492583,0.001,3344.1,3343.3,3.98892604]
[1768415492921,0.001,3344.1,3343.1,2.99119112]
[1768415492922,0.001,3344.1,3343.6,0.99792842]
[1768415493716,0.001,3344.1,3343.7,0.99792842]
[1768415493919,0.001,3344.1,3343.6,2.99073847]
[1768415493920,0.001,3344.1,3343.3,0.99792842]
[1768415494792,0.402,3344.0,3342.8,0.99792842]
[1768415495100,0.402,3344.0,3343.2,0.99792842]
[1768415495303,0.402,3344.0,3342.9,2.99140375]
[1768415495304,0.402,3344.0,3343.0,2.99128505]
[1768415495504,0.402,3344.0,3343.2,3.98906791]
[1768415495699,0.402,3344.0,3343.3,0.99792842]
[1768415495700,3.39243699,3344.0,3343.3,0.99792842]
[1768415495917,3.73178069,3344.0,3343.3,0.99792842]
[1768415496122,3.73183675,3344.0,3342.9,0.99792842]
[1768415496295,0.3393437,3344.0,3342.9,0.99792842]
[1768415496498,0.001,3344.1,3343.4,0.99792842]
[1768415496729,0.001,3344.1,3343.6,0.99792842]
[1768415497541,2.99134984,3344.1,3343.1,0.99792842]
[1768415497898,0.001,3344.1,3343.1,3.98914875]
[1768415498098,0.03108619,3344.1,3343.1,3.98914875]
[1768415498294,0.03108619,3344.1,3342.8,3.9893576]
[1768415498295,0.60224109,3344.1,3342.8,3.9893576]
[1768415498500,0.60224109,3344.1,3342.8,0.99792842]
[1768415498840,0.60224109,3344.1,3342.9,2.99139733]
[1768415499033,0.60224109,3344.1,3342.8,0.99792842]
[1768415499034,0.60224109,3344.1,3342.8,3.98943151]
[1768415499426,0.60224109,3344.1,3342.8,0.99792842]
[1768415499626,1.04987459,3344.0,3342.8,0.99792842]
[1768415499935,0.402,3343.9,3342.8,0.99792842]
[1768415500132,2.99069892,3343.7,3342.8,0.99792842]
[1768415500332,2.99069892,3343.7,3342.8,3.98941413]
[1768415500936,2.99069892,3343.7,3342.8,0.99792842]
[1768415501125,0.33926989,3343.6,3342.8,0.99792842]
[1768415501839,0.36935608,3343.6,3342.8,0.99792842]
[1768415502132,0.33926989,3343.6,3342.8,3.9894028]
[1768415502346,3.33006703,3343.6,3342.7,0.002]
[1768415502551,0.33926989,3343.6,3342.8,2.99149883]
[1768415502745,0.3330997,3343.5,3342.8,2.99148428]
[1768415502948,0.001,3343.7,3342.9,0.99792842]
[1768415503120,0.001,3343.7,3343.0,1.02784167]
[1768415503451,0.001,3343.7,3343.0,0.99792842]
[1768415504225,2.99175954,3343.7,3343.0,0.99792842]
[1768415504631,0.001,3343.7,3343.0,0.99792842]
[1768415504832,0.001,3343.7,3343.0,3.9892244]
[1768415505349,0.001,3343.7,3343.0,4.71740068]
[1768415505552,0.001,3343.7,3343.0,4.71736543]
[1768415505853,0.001,3343.7,3343.0,1.69619145]
[1768415506151,0.001,3343.7,3343.0,0.99792842]
[1768415506849,0.001,3343.7,3342.8,2.99144808]
[1768415507041,0.001,3343.7,3342.7,0.99992842]
[1768415507718,0.001,3343.7,3342.9,0.99792842]
[1768415508048,0.001,3343.7,3343.1,0.99792842]
[1768415508552,0.001,3344.1,3343.5,0.99792842]
[1768415512637,0.001,3344.1,3343.1,1.70999944]
[1768415512834,0.001,3344.1,3343.2,2.99107161]
[1768415513061,0.001,3344.1,3343.3,2.99105325]
[1768415513267,0.001,3343.8,3343.3,3.90512811]
[1768415513947,0.001,3343.8,3343.3,0.91407486]
[1768415514548,0.001,3343.8,3343.0,3.90536812]
[1768415514760,0.001,3343.8,3343.1,0.72938507]
[1768415516177,0.03108619,3343.8,3343.1,0.72938507]
[1768415516350,0.001,3343.8,3342.7,0.91607486]
[1768415516549,0.001,3343.8,3342.7,3.90760852]
[1768415516749,2.99160948,3343.8,3342.8,0.91407486]
[1768415517070,5.98221896,3343.8,3342.8,0.91407486]
[1768415517581,2.99160948,3343.8,3342.8,0.91407486]
[1768415517749,0.43164358,3343.7,3342.8,0.91407486]
[1768415519184,3.02087456,3343.6,3342.8,0.91407486]
[1768415519397,2.99078837,3343.6,3342.8,0.91407486]
[1768415519984,5.98157674,3343.6,3342.8,0.91407486]
[1768415520154,2.99078837,3343.6,3342.8,0.91407486]
[1768415521544,3.67240363,3343.6,3342.8,0.91407486]
[1768415521745,0.03008619,3343.5,3342.7,0.002]
[1768415521949,6.663192,3343.6,3342.7,0.002]
[1768415521950,0.403,3343.4,3342.7,0.002]
[1768415522759,0.92282632,3343.3,3340.8,2.99328659]
[1768415522974,0.92282632,3343.3,3341.5,0.91407486]
[1768415523285,0.92282632,3343.3,3339.8,7.44019951]
[1768415523286,0.92282632,3343.3,3338.9,0.002]
[1768415523287,30.0,3342.3,3338.9,0.002]
[1768415523449,7.53052423,3342.5,3338.9,0.002]
[1768415523450,0.92282632,3341.6,3339.6,0.91407486]
[1768415523651,0.92282632,3341.4,3339.7,0.91407486]
[1768415523849,0.92282632,3341.3,3339.7,0.91407486]
[1768415524083,0.92282632,3341.3,3339.0,0.397]
[1768415524084,0.92282632,3341.7,3339.9,0.91407486]
[1768415524287,0.403,3341.6,3340.5,2.99354603]
[1768415524562,0.403,3341.6,3339.5,0.91407486]
[1768415524563,0.92282632,3341.5,3339.5,0.91407486]
[1768415524865,0.92282632,3341.5,3339.1,0.91407486]
[1768415525184,0.92282632,3341.5,3339.6,2.99433919]
[1768415525185,0.92282632,3341.3,3339.6,2.99433919]
[1768415525387,0.92282632,3341.1,3339.4,0.91407486]
[1768415525560,0.92282632,3341.1,3339.3,2.9945577]
[1768415525761,0.92282632,3340.9,3339.4,3.59348523]
[1768415525964,1.2894573,3341.0,3339.1,0.91407486]
[1768415525965,0.92282632,3340.7,3339.1,0.91407486]
[1768415526488,0.92282632,3340.7,3339.4,2.99454081]
[1768415526688,0.403,3340.6,3339.4,2.99454081]
[1768415526897,0.403,3340.5,3339.5,0.0299446]
[1768415527103,0.403,3340.4,3339.4,5.98909072]
[1768415527270,0.403,3340.4,3339.5,0.69031656]
[1768415527472,0.403,3340.4,3339.5,2.99445519]
[1768415528480,1.2894573,3341.0,3339.6,0.94401856]
[1768415528678,0.92282632,3341.1,3339.6,0.94401856]
[1768415528679,3.91587634,3341.1,3339.6,0.94401856]
[1768415528993,0.403,3341.0,3339.6,0.91407486]
[1768415529286,6.90892636,3341.1,3339.6,0.91407486]
[1768415529493,6.90923716,3340.9,3339.2,0.91407486]
[1768415529699,3.91603174,3340.9,3339.6,2.99432035]
[1768415529908,0.92282632,3340.7,3339.2,0.91407486]
[1768415530077,0.92282632,3340.7,3339.0,2.99482881]
[1768415530260,0.92282632,3340.7,3338.9,0.91607486]
[1768415530584,0.92282632,3340.7,3339.1,2.99481659]
[1768415530790,0.73121628,3340.8,3338.9,0.91607486]
[1768415530791,0.92282632,3340.5,3338.9,0.91607486]
[1768415530967,0.92282632,3340.4,3339.1,2.9947559]
[1768415531172,0.403,3340.3,3339.2,2.99466422]
[1768415531569,0.403,3340.2,3339.3,0.02994639]
[1768415531891,0.403,3340.1,3339.3,0.91407486]
[1768415532095,0.403,3340.0,3339.3,0.69038893]
[1768415532396,0.403,3340.0,3339.0,2.99490575]
[1768415532603,0.403,3339.9,3338.9,0.002]
[1768415532893,0.403,3339.8,3338.9,2.99699509]
[1768415533102,1.32582632,3339.8,3338.9,0.002]
[1768415533259,0.403,3339.8,3338.9,0.002]
[1768415534388,0.33970377,3339.8,3338.9,0.002]
[1768415534710,0.403,3339.7,3338.9,0.002]
[1768415536331,0.92282632,3340.0,3338.9,0.002]
[1768415536528,0.403,3339.9,3338.9,0.002]
[1768415536829,0.403,3339.8,3339.2,0.002]
[1768415536990,0.403,3339.7,3339.2,0.002]
[1768415537592,0.001,3340.4,3339.3,6.90335404]
[1768415537811,0.403,3340.3,3339.4,0.6905354]
[1768415538800,0.403,3340.3,3339.2,0.002]
[1768415538801,0.03008619,3340.2,3339.2,0.002]
[1768415539136,0.92282632,3340.2,3339.2,0.002]
[1768415539319,0.001,3340.4,3339.2,0.91607486]
[1768415539494,0.403,3340.1,3339.3,0.91407486]
[1768415539693,0.403,3340.1,3339.5,2.99446024]
[1768415539908,0.403,3340.3,3339.4,0.69055253]
[1768415540112,0.03008619,3340.2,3339.2,0.002]
[1768415540325,1.35935622,3340.3,3339.3,2.99461917]
[1768415540715,1.35935622,3340.3,3339.2,2.99672799]
[1768415540918,0.9369252,3340.2,3339.2,0.002]
[1768415541119,0.96701139,3340.2,3339.2,2.99671985]
[1768415541313,0.73583313,3340.1,3339.2,0.002]
[1768415541517,0.73583313,3340.1,3339.2,2.99668736]
[1768415541715,0.73583313,3340.1,3339.2,0.002]
[1768415542020,3.72979664,3340.1,3339.2,0.002]
[1768415542540,0.96701139,3340.0,3338.9,0.002]
[1768415542696,5.98792702,3340.1,3338.9,0.002]
[1768415542901,0.403,3339.9,3338.9,0.002]
[1768415543210,0.9369252,3340.0,3338.9,0.002]
[1768415543409,0.9369252,3339.7,3338.9,0.002]
[1768415543597,6.92566636,3339.6,3338.0,0.92954154]
[1768415543797,0.73286664,3339.5,3338.1,1.32208264]
[1768415543998,0.73286664,3339.5,3338.2,0.92954154]
[1768415544232,2.99431927,3339.7,3338.2,0.92954154]
[1768415544440,0.9369252,3339.8,3338.4,0.92954154]
[1768415544738,0.403,3339.7,3338.5,0.95949511]
[1768415545465,0.403,3339.6,3338.5,0.92954154]
[1768415545737,2.99446024,3339.5,3338.2,0.92954154]
[1768415545893,1.37036374,3339.4,3338.3,2.9954726]
[1768415546096,1.37036374,3339.4,3338.5,2.99534934]
[1768415546329,1.37036374,3339.4,3338.4,2.99542626]
[1768415546526,1.37036374,3339.4,3338.2,2.99562091]
[1768415546527,1.37036374,3339.4,3338.1,0.3925411]
[1768415546714,0.9369252,3339.2,3338.1,2.99563597]
[1768415546921,0.9369252,3339.2,3337.5,0.93154154]
[1768415547295,0.9369252,3339.2,3338.0,2.99574296]
[1768415547737,2.99481896,3339.1,3337.7,0.92954154]
[1768415547937,0.403,3339.0,3337.7,0.92954154]
[1768415548236,0.73295508,3338.9,3337.7,0.92954154]
[1768415548812,0.73295508,3338.9,3337.7,0.92154154]
[1768415549235,0.73295508,3338.9,3337.7,0.91954154]
[1768415549822,2.99508805,3338.8,3337.5,0.002]
[1768415550621,0.403,3338.7,3337.5,0.93154154]
[1768415551226,0.90979273,3338.7,3337.5,0.93154154]
[1768415551556,6.13915931,3339.9,3337.5,0.93154154]
[1768415551557,0.403,3339.0,3337.7,0.92954154]
[1768415551758,0.403,3339.0,3337.8,6.92151228]
[1768415551960,3.39797264,3339.0,3337.8,6.92151228]
[1768415552264,7.32987048,3339.0,3337.8,3.92552691]
[1768415552555,7.32987048,3339.0,3337.8,2.99598537]
[1768415552777,0.73298705,3338.9,3337.8,2.99598537]
[1768415552974,0.9369252,3338.8,3337.5,0.002]
[1768415553820,0.9369252,3338.5,3336.6,3.92660441]
[1768415554154,0.9369252,3338.3,3336.6,3.91860441]
[1768415554462,0.9369252,3338.3,3336.6,6.91566728]
[1768415554823,0.403,3338.2,3336.7,0.95951127]
[1768415555254,1.17147276,3338.4,3336.7,0.95951127]
[1768415555553,3.93219267,3338.6,3336.7,0.95951127]
[1768415555723,0.9369252,3338.6,3336.8,8.99064972]
[1768415555922,0.403,3338.5,3336.9,0.92954154]
[1768415557023,0.9369252,3338.4,3336.9,0.92954154]
[1768415557930,2.99562638,3338.2,3337.0,5.99340724]
[1768415558132,3.93255158,3338.2,3337.1,0.69229488]
[1768415558333,6.92817796,3338.2,3337.1,0.69229488]
[1768415558645,6.92817796,3338.2,3336.8,2.99685811]
[1768415558646,0.9369252,3338.1,3336.8,2.99685811]
[1768415559156,0.9369252,3338.1,3336.5,1.32654154]
[1768415559457,0.9369252,3338.1,3336.9,2.99675795]
[1768415559753,0.9369252,3338.1,3336.8,2.99684848]
[1768415559956,6.984006,3338.0,3336.7,0.92954154]
[1768415560189,7.33155571,3338.0,3336.7,0.92954154]
[1768415560327,0.9369252,3337.9,3336.7,0.92954154]
[1768415560528,0.9369252,3337.9,3336.6,5.99410473]
[1768415561423,0.96701139,3337.9,3336.5,2.99714077]
[1768415561763,0.9369252,3337.7,3336.5,2.99714077]
[1768415561946,2.9961649,3337.6,3336.5,2.99714077]
[1768415562530,5.9923298,3337.6,3336.5,2.99714077]
[1768415562739,0.9369252,3337.5,3335.8,0.397]
[1768415562952,0.9369252,3337.3,3336.4,2.99724072]
[1768415563663,0.9369252,3337.3,3335.9,0.92954154]
[1768415564030,6.92997326,3337.2,3335.9,0.92954154]
[1768415564562,0.9369252,3337.1,3335.5,0.92954154]
[1768415565166,0.9369252,3337.1,3335.7,2.9978155]
[1768415565365,0.9369252,3336.9,3335.7,2.9978155]
[1768415565556,0.9369252,3336.7,3335.8,2.99777868]
[1768415565731,0.9369252,3336.7,3335.9,2.99768906]
[1768415565933,1.92957493,3337.0,3335.7,3.92741305]
[1768415566235,0.403,3336.9,3335.8,0.92954154]
[1768415566561,1.37616201,3336.8,3335.7,2.99787151]
[1768415567558,1.37616201,3336.8,3335.7,5.99574302]
[1768415568136,2.99697305,3336.7,3335.7,2.99787151]
[1768415569070,5.9939461,3336.7,3335.7,2.99787151]
[1768415569246,6.9308713,3336.7,3335.7,2.99787151]
[1768415569447,0.77731081,3336.6,3335.5,0.92954154]
[1768415569649,0.9369252,3336.5,3335.0,2.9984415]
[1768415569944,0.9369252,3336.3,3334.9,2.99856194]
[1768415570134,0.9369252,3336.3,3335.0,2.99848895]
[1768415570331,0.93652309,3336.1,3334.7,0.95136504]
[1768415570541,1.32991762,3336.0,3334.7,0.95136504]
[1768415570743,0.403,3335.9,3334.7,0.95136504]
[1768415570967,1.33952309,3335.9,3334.4,6.94941326]
[1768415571174,0.93652309,3335.8,3334.4,2.99900792]
[1768415571336,1.10981485,3335.7,3334.3,5.99821338]
[1768415571537,1.10981485,3335.7,3334.4,0.0299904]
[1768415571752,1.10981485,3335.7,3334.4,0.98135544]
[1768415571753,0.17329176,3335.7,3334.4,0.98135544]
[1768415571965,0.39339453,3336.0,3334.4,0.98135544]
[1768415571966,0.403,3335.6,3334.4,0.98135544]
[1768415572353,0.403,3335.7,3334.6,0.95136504]
[1768415572551,0.403,3335.7,3335.6,0.002]
[1768415572846,0.403,3335.7,3334.6,0.95136504]
[1768415573049,1.33952309,3335.7,3334.5,2.99895036]
[1768415573262,0.93652309,3335.6,3334.3,0.002]
[1768415574365,0.93652309,3335.4,3334.3,0.002]
[1768415574752,2.72852309,3335.4,3334.0,0.0074323]
[1768415574953,0.93652309,3335.2,3334.0,0.0074323]
[1768415575736,0.93652309,3335.2,3333.9,0.002]
[1768415575942,0.93652309,3335.2,3333.0,0.91579734]
[1768415576249,0.93652309,3335.2,3333.1,0.95136504]
[1768415576450,0.93652309,3335.0,3332.6,0.95136504]
[1768415576654,0.93652309,3334.8,3332.7,0.95136504]
[1768415576855,0.93652309,3334.8,3332.5,6.00147865]
[1768415576856,0.93652309,3334.6,3332.5,3.00072847]
[1768415577057,0.93652309,3334.6,3332.5,6.00147865]
[1768415578245,0.403,3334.5,3332.6,0.95136504]
[1768415578587,3.93556339,3334.4,3332.8,0.95136504]
[1768415578750,0.7337591,3334.3,3333.0,0.95136504]
[1768415578963,0.403,3334.3,3333.0,0.95136504]
[1768415579366,3.93551867,3334.5,3333.1,0.0300021]
[1768415579576,0.93652309,3334.3,3333.0,0.95136504]
[1768415579796,0.93652309,3334.3,3332.9,0.69525052]
[1768415580284,0.93652309,3334.3,3332.9,1.64661556]
[1768415580449,0.43385187,3334.2,3333.1,3.00021001]
[1768415580650,0.43385187,3334.2,3332.6,0.95136504]
[1768415580651,0.93652309,3334.1,3332.6,0.95136504]
[1768415581153,0.93652309,3334.1,3332.5,0.95136504]
[1768415581383,0.93652309,3334.1,3333.0,3.00026301]
[1768415582483,4.3389232,3334.0,3332.6,6.00132028]
[1768415582721,0.47727751,3333.9,3332.6,6.00132028]
[1768415583381,0.128,3335.0,3332.7,0.95136504]
[1768415583587,0.93652309,3334.7,3332.7,0.95136504]
[1768415584463,0.93652309,3334.5,3332.9,0.002]
[1768415585175,6.93424395,3334.6,3332.9,0.95336504]
[1768415585368,0.93652309,3334.2,3332.9,0.002]
[1768415585565,0.93652309,3334.1,3332.9,0.002]
[1768415585803,0.93652309,3333.9,3332.9,0.002]
[1768415586577,3.93610314,3333.8,3332.9,0.002]
[1768415586779,2.99949199,3333.9,3332.9,0.002]
[1768415586980,6.43288549,3333.9,3332.9,0.002]
[1768415587490,0.403,3333.8,3332.9,0.002]
[1768415588608,3.40264787,3333.8,3332.9,0.002]
[1768415589011,3.40259165,3333.8,3332.9,0.002]
[1768415589307,0.403,3333.8,3332.9,0.002]
[1768415589528,0.58034246,3333.8,3332.9,0.002]
[1768415589807,3.57994538,3333.8,3332.9,0.002]
[1768415590008,3.17694538,3333.8,3332.9,0.002]
[1768415590242,0.17734246,3333.8,3332.9,0.002]
[1768415590409,0.403,3333.7,3332.9,0.002]
[1768415590716,0.403,3333.7,3332.9,6.0027801]
[1768415590904,0.403,3333.7,3332.9,3.00239005]
[1768415593108,0.403,3333.7,3332.9,0.002]
[1768415593314,3.40268321,3333.7,3332.9,0.002]
[1768415593515,0.64022728,3333.6,3332.9,0.002]
[1768415595297,3.63999348,3333.6,3332.9,0.002]
[1768415596620,0.001,3333.5,3332.9,0.002]
[1768415598494,0.96760928,3333.5,3331.9,0.94936504]
[1768415598709,0.96760928,3333.5,3331.9,1.34736504]
[1768415598710,0.93652309,3333.3,3331.9,1.34736504]
[1768415598913,0.93652309,3333.3,3332.0,3.00115353]
[1768415598914,6.00042002,3333.1,3332.0,3.00115353]
[1768415599616,6.93694311,3333.1,3331.9,1.34736504]
[1768415599788,0.640442,3333.0,3331.9,1.34736504]
[1768415600185,0.640442,3333.0,3331.9,4.34865049]
[1768415600422,0.640442,3333.0,3331.3,0.9578474]
[1768415600423,0.93873084,3332.9,3331.3,0.9578474]
[1768415600721,0.93873084,3332.9,3331.9,3.00128045]
[1768415600921,0.93873084,3332.9,3331.7,0.96517893]
[1768415600922,3.15842152,3332.8,3331.7,0.96517893]
[1768415601223,0.404,3332.7,3331.7,0.96517893]
[1768415601620,0.404,3332.7,3331.5,6.0033018]
[1768415601621,0.93297835,3332.6,3331.5,3.0016509]
[1768415602220,0.93297835,3332.6,3331.4,3.00170899]